Workbook

Sheet Instructions
B7: :

Sheet Casual
A1: This calculator converts the base salary and total remuneration of a casual employee to annualised full-time equivalent amounts.
B2: 1. Input your data below (based on actual earnings and actual hours worked) * for the 12 months prior to the date chosen for the workplace profile data. | J2: 2. Copy and paste the below values in your workplace profile
A3: Employee unique identifier | B3: Total ordinary earnings paid for the 12 months* ($) | C3: Total bonus paid for the 12 months* ($) | D3: Total superannuation paid for the 12 months* ($) | E3: Total discretionary pay for the 12 months* ($) | F3: Total overtime paid for the 12 months* ($) | G3: Total other allowances paid for the 12 months* ($) | H3: Total hours worked for the 12 months* (Insert the total number of hours that the employee actually worked in the 12 months*) | I3: Ordinary days or hours in a working week (Insert your organisation's standard "full-time" number of hours per week e.g. 38 hours, 37.5 hours, 35 hours) | J3: Annualised full-time equivalent base salary ($) | K3: Annualised full-time equivalent total remuneration ($) | L3: FTE hours in year | M3: Hourly rate paid for base salary ($) | N3: Hourly rate paid for bonus paid for the year ($) | O3: Hourly rate paid for superannuation paid for the year ($) | P3: Hourly rate paid for discretionary pay for the year ($) | Q3: Hourly rate paid for overtime paid for the year ($) | R3: Hourly rate paid for other allowances paid for the year ($)
L4: Excel formula: =(I7*52) | M4: Excel formula: =(B7/H7) | N4: Excel formula: =(C7/H7) | O4: Excel formula: =(D7/H7) | P4: Excel formula: =(E7/H7) | Q4: Excel formula: =(F7) | R4: Excel formula: =(G7/H7)
A5: 1 | B5: 18534 | C5: 0 | D5: 1760.73 | E5: 0 | F5: 0 | G5: 0 | H5: 520 | I5: 38 | J5: =($M5*$L5) -> 70429.2 | K5: =($M5*$L5)+($N5*$L5)+($O5*$L5)+($P5*$L5)+($Q5)+($R5*$L5) -> 77119.974 | L5: =($I5*52) -> 1976 | M5: =($B5/$H5) -> 35.64230769 | N5: =($C5/$H5) -> 0 | O5: =($D5/$H5) -> 3.386019231 | P5: =($E5/$H5) -> 0 | Q5: =($F5) -> 0 | R5: =($G5/$H5) -> 0
A6: 2 | B6: 35488 | C6: 0 | D6: 0 | E6: 0 | F6: 200 | G6: 0 | H6: 800 | I6: 35 | J6: =($M6*$L6) -> 80735.2 | K6: =($M6*$L6)+($N6*$L6)+($O6*$L6)+($P6*$L6)+($Q6)+($R6*$L6) -> 80935.2 | L6: =($I6*52) -> 1820 | M6: =($B6/$H6) -> 44.36 | N6: =($C6/$H6) -> 0 | O6: =($D6/$H6) -> 0 | P6: =($E6/$H6) -> 0 | Q6: =($F6) -> 200 | R6: =($G6/$H6) -> 0
K7: =($M7*$L7)+($N7*$L7)+($O7*$L7)+($P7*$L7)+($Q7)+($R7*$L7) ->  | L7: 0 | Q7: 0
L8: 0 | Q8: 0
L9: 0 | Q9: 0
L10: 0 | Q10: 0
L11: 0 | Q11: 0
L12: 0 | Q12: 0
L13: 0 | Q13: 0
L14: 0 | Q14: 0
L15: 0 | Q15: 0
L16: 0 | Q16: 0
L17: 0 | Q17: 0
L18: 0 | Q18: 0
L19: 0 | Q19: 0
L20: 0 | Q20: 0
L21: 0 | Q21: 0
L22: 0 | Q22: 0
L23: 0 | Q23: 0
L24: 0 | Q24: 0
L25: 0 | Q25: 0
L26: 0 | Q26: 0
L27: 0 | Q27: 0
L28: 0 | Q28: 0
L29: 0 | Q29: 0
L30: 0 | Q30: 0
L31: 0 | Q31: 0
L32: 0 | Q32: 0
L33: 0 | Q33: 0
L34: 0 | Q34: 0
L35: 0 | Q35: 0
L36: 0 | Q36: 0
L37: 0 | Q37: 0
L38: 0 | Q38: 0
L39: 0 | Q39: 0
L40: 0 | Q40: 0
L41: 0 | Q41: 0
L42: 0 | Q42: 0
L43: 0 | Q43: 0
L44: 0 | Q44: 0
L45: 0 | Q45: 0
L46: 0 | Q46: 0
L47: 0 | Q47: 0
L48: 0 | Q48: 0
L49: 0 | Q49: 0
L50: 0 | Q50: 0
L51: 0 | Q51: 0
L52: 0 | Q52: 0
L53: 0 | Q53: 0
L54: 0 | Q54: 0
L55: 0 | Q55: 0
L56: 0 | Q56: 0
L57: 0 | Q57: 0
L58: 0 | Q58: 0
L59: 0 | Q59: 0
L60: 0 | Q60: 0
L61: 0 | Q61: 0
L62: 0 | Q62: 0
L63: 0 | Q63: 0
L64: 0 | Q64: 0
L65: 0 | Q65: 0
L66: 0 | Q66: 0
L67: 0 | Q67: 0
L68: 0 | Q68: 0
L69: 0 | Q69: 0
J70: =($M70*$L70) ->  | L70: =($I70*52) -> 0 | M70: =($B70/$H70) ->  | N70: =($C70/$H70) ->  | O70: =($D70/$H70) ->  | P70: =($E70/$H70) ->  | Q70: =($F70) -> 0 | R70: =($G70/$H70) -> 
K71: =($M71*$L71)+($N71*$L71)+($O71*$L71)+($P71*$L71)+($Q71)+($R71*$L71) ->  | L71: 0 | Q71: 0
L72: 0 | Q72: 0
L73: 0 | Q73: 0
L74: 0 | Q74: 0
L75: 0 | Q75: 0
L76: 0 | Q76: 0
L77: 0 | Q77: 0
L78: 0 | Q78: 0
L79: 0 | Q79: 0
L80: 0 | Q80: 0
L81: 0 | Q81: 0
L82: 0 | Q82: 0
L83: 0 | Q83: 0
L84: 0 | Q84: 0
L85: 0 | Q85: 0
L86: 0 | Q86: 0
L87: 0 | Q87: 0
L88: 0 | Q88: 0
L89: 0 | Q89: 0
L90: 0 | Q90: 0
L91: 0 | Q91: 0
L92: 0 | Q92: 0
L93: 0 | Q93: 0
L94: 0 | Q94: 0
L95: 0 | Q95: 0
L96: 0 | Q96: 0
L97: 0 | Q97: 0
L98: 0 | Q98: 0
L99: 0 | Q99: 0
L100: 0 | Q100: 0
L101: 0 | Q101: 0
L102: 0 | Q102: 0
L103: 0 | Q103: 0
L104: 0 | Q104: 0
L105: 0 | Q105: 0
L106: 0 | Q106: 0
L107: 0 | Q107: 0
L108: 0 | Q108: 0
L109: 0 | Q109: 0
L110: 0 | Q110: 0
L111: 0 | Q111: 0
L112: 0 | Q112: 0
L113: 0 | Q113: 0
L114: 0 | Q114: 0
L115: 0 | Q115: 0
L116: 0 | Q116: 0
L117: 0 | Q117: 0
L118: 0 | Q118: 0
L119: 0 | Q119: 0
L120: 0 | Q120: 0
L121: 0 | Q121: 0
L122: 0 | Q122: 0
L123: 0 | Q123: 0
L124: 0 | Q124: 0
L125: 0 | Q125: 0
L126: 0 | Q126: 0
L127: 0 | Q127: 0
L128: 0 | Q128: 0
L129: 0 | Q129: 0
L130: 0 | Q130: 0
L131: 0 | Q131: 0
L132: 0 | Q132: 0
L133: 0 | Q133: 0
J134: =($M134*$L134) ->  | L134: =($I134*52) -> 0 | M134: =($B134/$H134) ->  | N134: =($C134/$H134) ->  | O134: =($D134/$H134) ->  | P134: =($E134/$H134) ->  | Q134: =($F134) -> 0 | R134: =($G134/$H134) -> 
K135: =($M135*$L135)+($N135*$L135)+($O135*$L135)+($P135*$L135)+($Q135)+($R135*$L135) ->  | L135: 0 | Q135: 0
L136: 0 | Q136: 0
L137: 0 | Q137: 0
L138: 0 | Q138: 0
L139: 0 | Q139: 0
L140: 0 | Q140: 0
L141: 0 | Q141: 0
L142: 0 | Q142: 0
L143: 0 | Q143: 0
L144: 0 | Q144: 0
L145: 0 | Q145: 0
L146: 0 | Q146: 0
L147: 0 | Q147: 0
L148: 0 | Q148: 0
L149: 0 | Q149: 0
L150: 0 | Q150: 0
L151: 0 | Q151: 0
L152: 0 | Q152: 0
L153: 0 | Q153: 0
L154: 0 | Q154: 0
L155: 0 | Q155: 0
L156: 0 | Q156: 0
L157: 0 | Q157: 0
L158: 0 | Q158: 0
L159: 0 | Q159: 0
L160: 0 | Q160: 0
L161: 0 | Q161: 0
L162: 0 | Q162: 0
L163: 0 | Q163: 0
L164: 0 | Q164: 0
L165: 0 | Q165: 0
L166: 0 | Q166: 0
L167: 0 | Q167: 0
L168: 0 | Q168: 0
L169: 0 | Q169: 0
L170: 0 | Q170: 0
L171: 0 | Q171: 0
L172: 0 | Q172: 0
L173: 0 | Q173: 0
L174: 0 | Q174: 0
L175: 0 | Q175: 0
L176: 0 | Q176: 0
L177: 0 | Q177: 0
L178: 0 | Q178: 0
L179: 0 | Q179: 0
L180: 0 | Q180: 0
L181: 0 | Q181: 0
L182: 0 | Q182: 0
L183: 0 | Q183: 0
L184: 0 | Q184: 0
L185: 0 | Q185: 0
L186: 0 | Q186: 0
L187: 0 | Q187: 0
L188: 0 | Q188: 0
L189: 0 | Q189: 0
L190: 0 | Q190: 0
L191: 0 | Q191: 0
L192: 0 | Q192: 0
L193: 0 | Q193: 0
L194: 0 | Q194: 0
L195: 0 | Q195: 0
L196: 0 | Q196: 0
L197: 0 | Q197: 0
J198: =($M198*$L198) ->  | L198: =($I198*52) -> 0 | M198: =($B198/$H198) ->  | N198: =($C198/$H198) ->  | O198: =($D198/$H198) ->  | P198: =($E198/$H198) ->  | Q198: =($F198) -> 0 | R198: =($G198/$H198) -> 
K199: =($M199*$L199)+($N199*$L199)+($O199*$L199)+($P199*$L199)+($Q199)+($R199*$L199) ->  | L199: 0 | Q199: 0
L200: 0 | Q200: 0
... 301 more rows

Sheet Part-time| Contract| Part-year
A1: This calculator converts the base salary and total remuneration of a part-time, contract or part-year employee to annualised full-time equivalent amounts.
B2: 1. To convert to full-time equivalent (FTE), input your data below * for the 12 months prior to the date chosen for the workplace profile data. | J2: 2. To annualise, input your data below (choose Option 1 OR Option 2) | M2: 3. Copy and paste the below values in your workplace profile
A3: Employee unique identifier | B3: Total base salary paid for the 12 months* ($) | C3: Total bonus paid for the 12 months* ($) | D3: Total superannuation paid for the 12 months* ($) | E3: Total discretionary pay for the 12 months* ($) | F3: Total overtime paid for the 12 months* ($) | G3: Total other allowances paid for the 12 months* ($) | H3: Use either: HOURS in both columns OR DAYS in both columns | J3: Option 1 (do not enter any value if using Option 2) | K3: Option 2 (leave blank if using Option 1) | M3: Annualised, full-time equivalent base salary ($) | N3: Annualised, full-time equivalent total remuneration ($) | O3: Number of weeks worked in the year
H4: Actual days or hours the employee worked per week | I4: Ordinary days or hours in a working week (Insert your organisation's standard "full-time" number of hours per week e.g. 38 hours, or 5 days) | J4: FTE fraction (Once overridden with a value, the formula in the FTE cells will not reapply. If you need to update the FTE value or decide to use Option 2, you will need to use another row) | K4: Employee's commencement date (DD/MM/YYYY) | L4: Date between 1 April 2014 - 31 March 2015 (DD/MM/YYYY)
A5: 1 | B5: 31567 | C5: 0 | D5: 2841 | E5: 0 | F5: 500 | G5: 0 | H5: 30 | I5: 38 | J5: =($H5/$I5)*($O5/52) -> 0.2472527473 | K5: 2015-01-01 | L5: 2015-04-25 | M5: =($B5/$J5) -> 127670.9778 | N5: =($B5/$J5)+($C5/$J5)+($D5/$J5)+($E5/$J5)+($F5)+($G5/$J5) -> 139661.2444 | O5: =IF(($L5-$K5)/7<52,($L5-$K5)/7,52) -> 16.28571429
A6: 2 | B6: 53456 | C6: 0 | D6: 8018 | E6: 0 | F6: 0 | G6: 0 | H6: 4 | I6: 5 | J6: 0.8 | K6: 2013-05-13 | L6: 2015-03-31 | M6: =($B6/$J6) -> 66820 | N6: =($B6/$J6)+($C6/$J6)+($D6/$J6)+($E6/$J6)+($F6)+($G6/$J6) -> 76842.5 | O6: =IF(($L6-$K6)/7<52,($L6-$K6)/7,52) -> 52
O7: 0
O8: 0
O9: 0
M10: =($B10/$J10) ->  | O10: 0
O11: 0
O12: 0
O13: 0
O14: 0
O15: 0
O16: 0
O17: 0
O18: 0
O19: 0
O20: 0
O21: 0
O22: 0
O23: 0
O24: 0
O25: 0
O26: 0
O27: 0
O28: 0
O29: 0
O30: 0
O31: 0
O32: 0
O33: 0
O34: 0
O35: 0
O36: 0
O37: 0
O38: 0
O39: 0
O40: 0
O41: 0
O42: 0
O43: 0
O44: 0
O45: 0
O46: 0
O47: 0
O48: 0
O49: 0
O50: 0
O51: 0
O52: 0
O53: 0
O54: 0
O55: 0
O56: 0
O57: 0
O58: 0
O59: 0
O60: 0
O61: 0
O62: 0
O63: 0
O64: 0
O65: 0
O66: 0
O67: 0
O68: 0
O69: 0
J70: =($H70/$I70)*($O70/52) ->  | M70: =($B70/$J70) ->  | N70: =($B70/$J70)+($C70/$J70)+($D70/$J70)+($E70/$J70)+($F70)+($G70/$J70) ->  | O70: =IF(($L70-$K70)/7<52,($L70-$K70)/7,52) -> 0
O71: 0
O72: 0
O73: 0
O74: 0
O75: 0
O76: 0
O77: 0
O78: 0
O79: 0
O80: 0
O81: 0
O82: 0
O83: 0
O84: 0
O85: 0
O86: 0
O87: 0
O88: 0
O89: 0
O90: 0
O91: 0
O92: 0
O93: 0
O94: 0
O95: 0
O96: 0
O97: 0
O98: 0
O99: 0
O100: 0
O101: 0
O102: 0
O103: 0
O104: 0
O105: 0
O106: 0
O107: 0
O108: 0
O109: 0
O110: 0
O111: 0
O112: 0
O113: 0
O114: 0
O115: 0
O116: 0
O117: 0
O118: 0
O119: 0
O120: 0
O121: 0
O122: 0
O123: 0
O124: 0
O125: 0
O126: 0
O127: 0
O128: 0
O129: 0
O130: 0
O131: 0
O132: 0
O133: 0
J134: =($H134/$I134)*($O134/52) ->  | M134: =($B134/$J134) ->  | N134: =($B134/$J134)+($C134/$J134)+($D134/$J134)+($E134/$J134)+($F134)+($G134/$J134) ->  | O134: =IF(($L134-$K134)/7<52,($L134-$K134)/7,52) -> 0
O135: 0
O136: 0
O137: 0
O138: 0
O139: 0
O140: 0
O141: 0
O142: 0
O143: 0
O144: 0
O145: 0
O146: 0
O147: 0
O148: 0
O149: 0
O150: 0
O151: 0
O152: 0
O153: 0
O154: 0
O155: 0
O156: 0
O157: 0
O158: 0
O159: 0
O160: 0
O161: 0
O162: 0
O163: 0
O164: 0
O165: 0
O166: 0
O167: 0
O168: 0
O169: 0
O170: 0
O171: 0
O172: 0
O173: 0
O174: 0
O175: 0
O176: 0
O177: 0
O178: 0
O179: 0
O180: 0
O181: 0
O182: 0
O183: 0
O184: 0
O185: 0
O186: 0
O187: 0
O188: 0
O189: 0
O190: 0
O191: 0
O192: 0
O193: 0
O194: 0
O195: 0
O196: 0
O197: 0
J198: =($H198/$I198)*($O198/52) ->  | M198: =($B198/$J198) ->  | N198: =($B198/$J198)+($C198/$J198)+($D198/$J198)+($E198/$J198)+($F198)+($G198/$J198) ->  | O198: =IF(($L198-$K198)/7<52,($L198-$K198)/7,52) -> 0
O199: 0
O200: 0
... 301 more rows
